[Event "SS Manhem Chess Week 2022: IM Tournament"]
[Site "Schackcentrum, Vegagatan 20, Gothenburg, Sweden"]
[Date "2022.08.10"]
[Round "7.4"]
[White "Olsson, William"]
[Black "Jacobsen, Mikkel Manosri"]
[Result "1-0"]
[TimeControl "90 minutes for 40 moves + 30 minutes for the rest of the game + 30 seconds per move from move one."]
[WhiteTitle "FM"]
[BlackTitle "FM"]
[WhiteFideId "1741721"]
[BlackFideId "1444514"]
[WhiteElo "2311"]
[BlackElo "2320"]

1. c4 {[%clk 01:30:55]} {[%emt 00:00:03]} g6 {[%clk 01:30:56]} {[%emt
00:00:04]} 2. g3 {[%clk 01:31:21]} {[%emt 00:00:06]} Bg7 {[%clk 01:31:22]}
{[%emt 00:00:04]} 3. Bg2 {[%clk 01:31:45]} {[%emt 00:00:06]} e5 {[%clk
01:31:46]} {[%emt 00:00:05]} 4. Nc3 {[%clk 01:31:55]} {[%emt 00:00:20]} Ne7
{[%clk 01:32:10]} {[%emt 00:00:05]} 5. Rb1 {[%clk 01:31:33]} {[%emt 00:00:53]}
c6 {[%clk 01:31:12]} {[%emt 00:01:27]} 6. e4 {[%clk 01:30:13]} {[%emt
00:01:50]} O-O {[%clk 01:30:50]} {[%emt 00:00:51]} 7. Nge2 {[%clk 01:30:30]}
{[%emt 00:00:13]} f5 {[%clk 01:26:52]} {[%emt 00:04:28]} 8. d3 {[%clk
01:30:46]} {[%emt 00:00:15]} d6 {[%clk 01:26:42]} {[%emt 00:00:40]} 9. O-O
{[%clk 01:30:36]} {[%emt 00:00:38]} Be6 {[%clk 01:26:17]} {[%emt 00:00:56]} 10.
b4 {[%clk 01:26:28]} {[%emt 00:04:38]} f4 {[%clk 01:24:50]} {[%emt 00:01:57]}
11. gxf4 {[%clk 01:18:46]} {[%emt 00:08:14]} exf4 {[%clk 01:25:17]} {[%emt
00:00:03]} 12. Nxf4 {[%clk 01:18:52]} {[%emt 00:00:24]} Rxf4 {[%clk 01:24:55]}
{[%emt 00:00:51]} 13. Bxf4 {[%clk 01:19:14]} {[%emt 00:00:08]} Bxc3 {[%clk
01:25:12]} {[%emt 00:00:13]} 14. d4 {[%clk 01:15:29]} {[%emt 00:04:17]} a5
{[%clk 01:22:32]} {[%emt 00:03:09]} 15. d5 {[%clk 01:14:36]} {[%emt 00:01:22]}
cxd5 {[%clk 01:22:03]} {[%emt 00:00:59]} 16. cxd5 {[%clk 01:14:34]} {[%emt
00:00:32]} Bf7 {[%clk 01:17:27]} {[%emt 00:05:06]} 17. bxa5 {[%clk 01:13:51]}
{[%emt 00:01:14]} Na6 {[%clk 01:13:54]} {[%emt 00:04:03]} 18. Qb3 {[%clk
01:07:24]} {[%emt 00:06:56]} Bxa5 {[%clk 01:13:25]} {[%emt 00:00:59]} 19. Bh6
{[%clk 01:07:33]} {[%emt 00:00:20]} Nc7 {[%clk 00:57:00]} {[%emt 00:16:55]} 20.
Qxb7 {[%clk 01:05:37]} Ne8 {[%clk 00:56:35]} {[%emt 00:03:21]} 21. Bg5 {[%clk
01:05:44]} {[%emt 00:00:23]} Bc7 {[%clk 00:53:31]} {[%emt 00:03:35]} 22. Bxe7
{[%clk 01:06:07]} {[%emt 00:00:08]} Qxe7 {[%clk 00:52:45]} {[%emt 00:01:15]} 23.
Qxa8 {[%clk 01:06:33]} {[%emt 00:00:05]} Qh4 {[%clk 00:52:59]} {[%emt
00:00:17]} 24. Rb7 {[%clk 01:06:01]} {[%emt 00:01:00]} Kg7 {[%clk 00:53:01]}
{[%emt 00:00:27]} 25. Qc8 {[%clk 01:06:24]} {[%emt 00:00:08]} Bd8 {[%clk
00:52:56]} {[%emt 00:00:35]} 26. Qd7 {[%clk 01:06:41]} {[%emt 00:00:13]} Qf4
{[%clk 00:52:39]} {[%emt 00:00:47]} 27. Qxe8 {[%clk 01:07:02]} {[%emt
00:00:09]} Bh4 {[%clk 00:52:15]} {[%emt 00:00:54]} 28. Rxf7+ {[%clk 01:07:26]}
{[%emt 00:00:06]} Qxf7 {[%clk 00:52:39]} {[%emt 00:00:06]} 29. Qxf7+ {[%clk
01:07:52]} {[%emt 00:00:04]} Kxf7 {[%clk 00:53:03]} {[%emt 00:00:05]} 30. a4
{[%clk 01:08:19]} {[%emt 00:00:04]} Bd8 {[%clk 00:52:56]} {[%emt 00:00:37]} 31.
Rb1 {[%clk 01:08:43]} {[%emt 00:00:06]} 1-0

[Event "SS Manhem Chess Week 2022: IM Tournament"]
[Site "Schackcentrum, Vegagatan 20, Gothenburg, Sweden"]
[Date "2022.08.10"]
[Round "7.5"]
[White "Ernst, Thomas"]
[Black "Heimisson, Hilmir Freyr"]
[Result "1/2-1/2"]
[TimeControl "90 minutes for 40 moves + 30 minutes for the rest of the game + 30 seconds per move from move one."]
[WhiteTitle "GM"]
[BlackTitle "IM"]
[WhiteFideId "1700065"]
[BlackFideId "2309998"]
[WhiteElo "2323"]
[BlackElo "2323"]

1. e4 {[%clk 01:30:57]} {[%emt 00:00:03]} c5 {[%clk 01:30:55]} {[%emt
00:00:05]} 2. Nf3 {[%clk 01:31:18]} {[%emt 00:00:08]} d6 {[%clk 01:31:15]}
{[%emt 00:00:10]} 3. d4 {[%clk 01:31:41]} {[%emt 00:00:08]} cxd4 {[%clk
01:31:42]} {[%emt 00:00:04]} 4. Nxd4 {[%clk 01:32:07]} {[%emt 00:00:04]} Nf6
{[%clk 01:32:07]} {[%emt 00:00:05]} 5. Nc3 {[%clk 01:32:33]} {[%emt 00:00:04]}
Nc6 {[%clk 01:32:32]} {[%emt 00:00:05]} 6. Bg5 {[%clk 01:32:52]} {[%emt
00:00:11]} e6 {[%clk 01:32:55]} {[%emt 00:00:07]} 7. Qd2 {[%clk 01:33:10]}
{[%emt 00:00:11]} a6 {[%clk 01:33:18]} {[%emt 00:00:08]} 8. O-O-O {[%clk
01:33:25]} {[%emt 00:00:15]} Bd7 {[%clk 01:33:35]} {[%emt 00:00:13]} 9. f4
{[%clk 01:33:42]} {[%emt 00:00:14]} h6 {[%clk 01:33:51]} {[%emt 00:00:15]} 10.
Bh4 {[%clk 01:33:40]} {[%emt 00:00:31]} b5 {[%clk 01:34:09]} {[%emt 00:00:12]}
11. Bxf6 {[%clk 01:31:56]} {[%emt 00:02:14]} gxf6 {[%clk 01:33:53]} {[%emt
00:00:46]} 12. Nxc6 {[%clk 01:31:46]} {[%emt 00:00:40]} Bxc6 {[%clk 01:34:14]}
{[%emt 00:00:08]} 13. Qe3 {[%clk 01:30:36]} {[%emt 00:01:39]} Qe7 {[%clk
01:15:22]} {[%emt 00:19:23]} 14. Bd3 {[%clk 01:30:40]} {[%emt 00:00:25]} Qa7
{[%clk 01:11:43]} {[%emt 00:04:10]} 15. Qe1 {[%clk 01:29:57]} {[%emt 00:01:13]}
Be7 {[%clk 01:00:46]} {[%emt 00:11:27]} 16. Kb1 {[%clk 01:26:47]} {[%emt
00:03:39]} Qc5 {[%clk 00:56:13]} {[%emt 00:05:03]} 17. Rf1 {[%clk 01:22:40]}
{[%emt 00:04:37]} Rg8 {[%clk 00:51:33]} {[%emt 00:05:10]} 18. g3 {[%clk
01:22:26]} {[%emt 00:00:44]} a5 {[%clk 00:49:11]} {[%emt 00:02:53]} 19. Qf2
{[%clk 01:08:14]} {[%emt 00:14:41]} Qxf2 {[%clk 00:48:07]} {[%emt 00:01:35]} 20.
Rxf2 {[%clk 01:08:37]} {[%emt 00:00:07]} Rb8 {[%clk 00:48:02]} {[%emt
00:00:34]} 21. Ne2 {[%clk 01:07:04]} {[%emt 00:02:03]} Bd8 {[%clk 00:43:59]}
{[%emt 00:04:34]} 22. Nd4 {[%clk 01:07:11]} {[%emt 00:00:22]} Bd7 {[%clk
00:43:50]} {[%emt 00:00:39]} 23. Rfd2 {[%clk 01:03:31]} {[%emt 00:04:10]} Ke7
{[%clk 00:42:27]} {[%emt 00:01:54]} 24. Be2 {[%clk 01:01:52]} {[%emt 00:02:07]}
b4 {[%clk 00:38:36]} {[%emt 00:04:23]} 25. Bc4 {[%clk 00:54:10]} {[%emt
00:08:10]} Bb6 {[%clk 00:32:19]} {[%emt 00:06:49]} 26. Bb5 {[%clk 00:47:30]}
{[%emt 00:07:10]} Bxd4 {[%clk 00:31:41]} {[%emt 00:01:08]} 27. Bxd7 {[%clk
00:47:51]} {[%emt 00:00:09]} Bc5 {[%clk 00:31:59]} {[%emt 00:00:12]} 28. Ba4
{[%clk 00:47:27]} {[%emt 00:00:54]} h5 {[%clk 00:32:05]} {[%emt 00:00:24]} 29.
Rg2 {[%clk 00:46:04]} {[%emt 00:01:52]} Rg7 {[%clk 00:26:58]} {[%emt 00:05:37]}
30. Rd3 {[%clk 00:41:45]} {[%emt 00:04:47]} Rbg8 {[%clk 00:26:57]} {[%emt
00:00:33]} 31. c3 {[%clk 00:40:28]} {[%emt 00:01:46]} h4 {[%clk 00:17:36]}
{[%emt 00:09:52]} 32. cxb4 {[%clk 00:39:45]} {[%emt 00:01:13]} axb4 {[%clk
00:17:31]} {[%emt 00:00:36]} 33. Bd1 {[%clk 00:39:43]} {[%emt 00:00:31]} hxg3
{[%clk 00:13:26]} {[%emt 00:04:35]} 34. Rdxg3 {[%clk 00:35:26]} {[%emt
00:04:47]} Rxg3 {[%clk 00:13:16]} {[%emt 00:00:40]} 35. Rxg3 {[%clk 00:34:52]}
{[%emt 00:01:04]} Rh8 {[%clk 00:11:55]} {[%emt 00:01:52]} 36. h3 {[%clk
00:34:28]} {[%emt 00:00:53]} Rh4 {[%clk 00:08:12]} {[%emt 00:04:13]} 37. Rf3
{[%clk 00:33:05]} {[%emt 00:01:52]} Rh8 {[%clk 00:01:39]} {[%emt 00:07:05]} 38.
Rg3 {[%clk 00:32:18]} {[%emt 00:01:16]} Bf2 {[%clk 00:00:57]} {[%emt 00:01:13]}
39. Rf3 {[%clk 00:32:14]} {[%emt 00:00:33]} Be1 {[%clk 00:00:42]} {[%emt
00:00:46]} 40. a3 {[%clk 00:30:15]} {[%emt 00:02:29]} Rg8 {[%clk 00:00:35]}
{[%emt 00:00:38]} 41. f5 {[%clk 00:25:49]} {[%emt 00:04:54]} Rg1 {[%clk
00:21:31]} {[%emt 00:09:35]} 42. Ka2 {[%clk 00:54:10]} {[%emt 00:02:09]} Rg2
{[%clk 00:19:03]} {[%emt 00:02:59]} 43. Re3 {[%clk 00:48:39]} {[%emt 00:05:58]}
Bd2 {[%clk 00:09:48]} {[%emt 00:09:47]} 44. Re2 {[%clk 00:48:10]} {[%emt
00:00:57]} Rxe2 {[%clk 00:10:12]} {[%emt 00:00:08]} 45. Bxe2 {[%clk 00:48:09]}
{[%emt 00:00:32]} bxa3 {[%clk 00:10:26]} {[%emt 00:00:16]} 46. bxa3 {[%clk
00:47:40]} {[%emt 00:00:59]} d5 {[%clk 00:07:26]} {[%emt 00:03:30]} 47. exd5
{[%clk 00:47:58]} {[%emt 00:00:12]} Kd6 {[%clk 00:01:56]} {[%emt 00:06:00]} 48.
dxe6 {[%clk 00:47:24]} {[%emt 00:01:04]} fxe6 {[%clk 00:02:20]} {[%emt
00:00:06]} 49. fxe6 {[%clk 00:47:45]} {[%emt 00:00:09]} Kxe6 {[%clk 00:02:42]}
{[%emt 00:00:08]} 50. Kb3 {[%clk 00:47:52]} {[%emt 00:00:24]} Kf5 {[%clk
00:03:01]} {[%emt 00:00:11]} 51. Kc4 {[%clk 00:48:03]} {[%emt 00:00:18]} Kg5
{[%clk 00:02:51]} {[%emt 00:00:41]} 52. Kd5 {[%clk 00:46:57]} {[%emt 00:01:33]}
f5 {[%clk 00:02:47]} {[%emt 00:00:36]} 53. Ke6 {[%clk 00:46:46]} {[%emt
00:00:39]} Bc3 {[%clk 00:02:28]} {[%emt 00:00:51]} 54. a4 {[%clk 00:46:19]}
{[%emt 00:00:57]} Kh4 {[%clk 00:02:34]} {[%emt 00:00:24]} 1/2-1/2

[Event "SS Manhem Chess Week 2022: IM Tournament"]
[Site "Schackcentrum, Vegagatan 20, Gothenburg, Sweden"]
[Date "2022.08.11"]
[Round "8.1"]
[White "Pantzar, Milton"]
[Black "Ernst, Thomas"]
[Result "1-0"]
[TimeControl "90 minutes for 40 moves + 30 minutes for the rest of the game + 30 seconds per move from move one."]
[WhiteTitle "IM"]
[BlackTitle "GM"]
[WhiteFideId "1721003"]
[BlackFideId "1700065"]
[WhiteElo "2447"]
[BlackElo "2323"]

1. d4 {[%clk 01:30:54]} {[%emt 00:00:06]} Nf6 {[%clk 01:30:52]} {[%emt
00:00:08]} 2. c4 {[%clk 01:31:05]} {[%emt 00:00:20]} g6 {[%clk 01:31:12]}
{[%emt 00:00:09]} 3. Nc3 {[%clk 01:31:24]} {[%emt 00:00:11]} d5 {[%clk
01:31:22]} {[%emt 00:00:20]} 4. cxd5 {[%clk 01:31:44]} {[%emt 00:00:10]} Nxd5
{[%clk 01:31:45]} {[%emt 00:00:07]} 5. e4 {[%clk 01:32:05]} {[%emt 00:00:09]}
Nxc3 {[%clk 01:32:08]} {[%emt 00:00:07]} 6. bxc3 {[%clk 01:32:30]} {[%emt
00:00:05]} Bg7 {[%clk 01:32:31]} {[%emt 00:00:07]} 7. Nf3 {[%clk 01:31:58]}
{[%emt 00:01:03]} c5 {[%clk 01:32:47]} {[%emt 00:00:13]} 8. Rb1 {[%clk
01:32:02]} {[%emt 00:00:26]} O-O {[%clk 01:32:50]} {[%emt 00:00:26]} 9. Be2
{[%clk 01:32:02]} {[%emt 00:00:31]} cxd4 {[%clk 01:32:48]} {[%emt 00:00:32]} 10.
cxd4 {[%clk 01:32:24]} {[%emt 00:00:08]} Qa5+ {[%clk 01:33:05]} {[%emt
00:00:12]} 11. Bd2 {[%clk 01:32:16]} {[%emt 00:00:39]} Qxa2 {[%clk 01:33:22]}
12. O-O {[%clk 01:32:08]} {[%emt 00:00:51]} b6 {[%clk 01:33:30]} {[%emt
00:00:21]} 13. Qc1 {[%clk 01:31:44]} {[%emt 00:00:56]} Bb7 {[%clk 01:32:55]}
{[%emt 00:01:04]} 14. Bc4 {[%clk 01:31:16]} {[%emt 00:00:59]} Qa4 {[%clk
01:33:09]} {[%emt 00:00:15]} 15. Bb5 {[%clk 01:31:30]} {[%emt 00:00:17]} Qa2
{[%clk 01:33:18]} {[%emt 00:00:19]} 16. Bc4 {[%clk 01:30:39]} {[%emt 00:01:23]}
Qa4 {[%clk 01:33:02]} {[%emt 00:00:44]} 17. Bb5 {[%clk 01:31:04]} {[%emt
00:00:07]} Qa2 {[%clk 01:33:23]} {[%emt 00:00:08]} 18. Re1 {[%clk 01:31:29]}
{[%emt 00:00:07]} Rc8 {[%clk 01:22:05]} {[%emt 00:11:47]} 19. Qd1 {[%clk
01:31:21]} {[%emt 00:00:38]} Qc2 {[%clk 01:21:54]} {[%emt 00:00:40]} 20. Qe2
{[%clk 01:31:27]} {[%emt 00:00:25]} Nc6 {[%clk 01:19:13]} {[%emt 00:03:11]} 21.
Bd3 {[%clk 01:26:57]} {[%emt 00:05:00]} Qa2 {[%clk 01:12:28]} {[%emt 00:07:13]}
22. Bc4 {[%clk 01:26:34]} {[%emt 00:00:55]} Qa4 {[%clk 01:02:17]} {[%emt
00:10:40]} 23. Bb3 {[%clk 01:24:59]} {[%emt 00:02:06]} Qa6 {[%clk 01:02:06]}
{[%emt 00:00:39]} 24. Qe3 {[%clk 01:15:34]} {[%emt 00:09:56]} Na5 {[%clk
01:00:53]} {[%emt 00:01:43]} 25. Bxf7+ {[%clk 01:05:24]} {[%emt 00:10:41]} Kxf7
{[%clk 01:01:17]} {[%emt 00:00:05]} 26. Ng5+ {[%clk 01:05:39]} {[%emt
00:00:16]} Ke8 {[%clk 01:01:08]} {[%emt 00:00:38]} 27. Qf3 {[%clk 00:56:35]}
{[%emt 00:09:35]} Bh6 {[%clk 00:54:46]} {[%emt 00:06:49]} 28. Qf7+ {[%clk
00:54:42]} {[%emt 00:02:25]} Kd7 {[%clk 00:55:09]} {[%emt 00:00:07]} 29. Qe6+
{[%clk 00:50:57]} {[%emt 00:04:15]} Ke8 {[%clk 00:55:27]} {[%emt 00:00:12]} 30.
Nxh7 {[%clk 00:50:16]} {[%emt 00:01:12]} 1-0

[Event "SS Manhem Chess Week 2022: IM Tournament"]
[Site "Schackcentrum, Vegagatan 20, Gothenburg, Sweden"]
[Date "2022.08.11"]
[Round "8.2"]
[White "Heimisson, Hilmir Freyr"]
[Black "Kucuksari, Kaan"]
[Result "0-1"]
[TimeControl "90 minutes for 40 moves + 30 minutes for the rest of the game + 30 seconds per move from move one."]
[WhiteTitle "IM"]
[BlackTitle "FM"]
[WhiteFideId "2309998"]
[BlackFideId "6380166"]
[WhiteElo "2323"]
[BlackElo "2398"]

1. d4 {[%clk 01:26:59]} {[%emt 00:04:00]} Nf6 {[%clk 01:30:54]} {[%emt
00:00:07]} 2. c4 {[%clk 01:25:02]} {[%emt 00:02:27]} g6 {[%clk 01:31:17]}
{[%emt 00:00:07]} 3. Nf3 {[%clk 01:24:39]} {[%emt 00:00:52]} Bg7 {[%clk
01:31:43]} {[%emt 00:00:05]} 4. g3 {[%clk 01:24:50]} {[%emt 00:00:19]} O-O
{[%clk 01:32:00]} {[%emt 00:00:13]} 5. Bg2 {[%clk 01:24:51]} {[%emt 00:00:29]}
d6 {[%clk 01:32:23]} {[%emt 00:00:07]} 6. O-O {[%clk 01:24:53]} {[%emt
00:00:28]} Nbd7 {[%clk 01:32:49]} {[%emt 00:00:04]} 7. Nc3 {[%clk 01:19:51]}
{[%emt 00:05:31]} e5 {[%clk 01:33:03]} {[%emt 00:00:17]} 8. e4 {[%clk
01:19:41]} {[%emt 00:00:40]} exd4 {[%clk 01:33:22]} {[%emt 00:00:12]} 9. Nxd4
{[%clk 01:19:48]} {[%emt 00:00:22]} Re8 {[%clk 01:33:48]} {[%emt 00:00:05]} 10.
h3 {[%clk 01:18:53]} {[%emt 00:01:25]} Nc5 {[%clk 01:34:12]} {[%emt 00:00:07]}
11. Re1 {[%clk 01:18:50]} {[%emt 00:00:32]} Bd7 {[%clk 01:34:37]} {[%emt
00:00:05]} 12. Rb1 {[%clk 01:15:47]} {[%emt 00:03:32]} a5 {[%clk 01:35:03]}
{[%emt 00:00:06]} 13. Kh2 {[%clk 01:06:01]} {[%emt 00:10:15]} h5 {[%clk
01:28:56]} {[%emt 00:06:37]} 14. Bf4 {[%clk 00:53:32]} {[%emt 00:12:58]} h4
{[%clk 01:14:10]} {[%emt 00:15:16]} 15. g4 {[%clk 00:51:24]} {[%emt 00:02:38]}
Nh7 {[%clk 00:56:21]} {[%emt 00:18:19]} 16. Kh1 {[%clk 00:43:26]} {[%emt
00:08:28]} g5 {[%clk 00:39:03]} {[%emt 00:17:48]} 17. Be3 {[%clk 00:37:17]}
{[%emt 00:06:39]} Be5 {[%clk 00:37:59]} {[%emt 00:01:35]} 18. Qd2 {[%clk
00:35:44]} {[%emt 00:02:03]} Bc6 {[%clk 00:28:50]} {[%emt 00:09:39]} 19. Nf5
{[%emt 00:23:08]} Re6 {[%clk 00:15:04]} 20. Rbd1 {[%clk 00:24:19]} {[%emt
00:03:33]} Nd7 {[%clk 00:10:48]} {[%emt 00:04:46]} 21. Nd5 {[%clk 00:19:44]}
{[%emt 00:05:05]} Ndf8 {[%clk 00:08:29]} {[%emt 00:02:51]} 22. f4 {[%clk
00:14:36]} {[%emt 00:05:37]} gxf4 {[%clk 00:08:38]} {[%emt 00:00:21]} 23. Nxf4
{[%clk 00:13:59]} {[%emt 00:01:06]} Bxf4 {[%clk 00:04:21]} {[%emt 00:04:47]} 24.
Bxf4 {[%clk 00:14:24]} {[%emt 00:00:04]} Ng6 {[%clk 00:04:32]} {[%emt
00:00:19]} 25. Bh6 {[%clk 00:09:56]} {[%emt 00:04:58]} Qf6 {[%clk 00:02:05]}
{[%emt 00:02:57]} 26. g5 {[%clk 00:07:40]} {[%emt 00:02:47]} Qd8 {[%clk
00:02:05]} {[%emt 00:00:30]} 27. c5 {[%clk 00:03:44]} {[%emt 00:04:26]} Qd7
{[%clk 00:00:40]} {[%emt 00:01:55]} 28. Qc3 {[%clk 00:02:57]} {[%emt 00:01:17]}
Re5 {[%clk 00:00:46]} {[%emt 00:00:23]} 29. cxd6 {[%clk 00:02:36]} {[%emt
00:00:52]} Rae8 {[%clk 00:01:15]} 30. Ne7+ {[%clk 00:01:40]} {[%emt 00:01:27]}
R8xe7 {[%clk 00:00:38]} {[%emt 00:01:07]} 31. dxe7 {[%clk 00:02:08]} {[%emt
00:00:02]} Qxe7 {[%clk 00:00:59]} {[%emt 00:00:09]} 32. Qd4 {[%clk 00:01:12]}
{[%emt 00:01:26]} Nxg5 {[%clk 00:00:55]} {[%emt 00:00:34]} 33. Qd8+ {[%clk
00:01:01]} {[%emt 00:00:41]} Qxd8 {[%clk 00:01:17]} {[%emt 00:00:08]} 34. Rxd8+
{[%clk 00:01:26]} {[%emt 00:00:04]} Kh7 {[%clk 00:01:45]} {[%emt 00:00:03]} 35.
Bxg5 {[%clk 00:01:11]} {[%emt 00:00:45]} Rxg5 {[%clk 00:02:13]} {[%emt
00:00:01]} 36. Rf1 {[%clk 00:00:54]} {[%emt 00:00:47]} Ne5 {[%clk 00:01:33]}
{[%emt 00:01:10]} 37. Rf4 {[%clk 00:00:56]} {[%emt 00:00:29]} Kg7 {[%clk
00:01:01]} {[%emt 00:01:02]} 38. Rxh4 {[%clk 00:00:49]} {[%emt 00:00:37]} f5
{[%clk 00:00:35]} {[%emt 00:00:56]} 39. Rf4 {[%clk 00:00:37]} {[%emt 00:00:42]}
Ng6 {[%clk 00:00:46]} {[%emt 00:00:19]} 40. Rf2 {[%clk 00:00:36]} {[%emt
00:00:32]} fxe4 {[%clk 00:00:47]} {[%emt 00:00:28]} 41. Kh2 {[%clk 00:09:39]}
{[%emt 00:21:27]} e3 {[%clk 00:06:38]} {[%emt 00:24:39]} 42. Rc2 {[%clk
00:08:11]} {[%emt 00:01:58]} Nh4 {[%clk 00:04:20]} {[%emt 00:02:48]} 43. Bxc6
{[%clk 00:03:51]} {[%emt 00:04:50]} bxc6 {[%clk 00:04:49]} {[%emt 00:00:01]} 44.
Rd1 {[%clk 00:02:53]} {[%emt 00:01:28]} Nf3+ {[%clk 00:01:12]} {[%emt
00:04:07]} 45. Kh1 {[%clk 00:03:22]} {[%emt 00:00:01]} Re5 {[%clk 00:00:39]}
{[%emt 00:01:03]} 46. Re2 {[%clk 00:01:08]} {[%emt 00:02:44]} c5 {[%clk
00:00:53]} {[%emt 00:00:16]} 47. Rf1 {[%clk 00:00:45]} {[%emt 00:00:53]} Nd4
{[%clk 00:00:40]} {[%emt 00:00:43]} 48. Rg2+ {[%clk 00:00:56]} {[%emt
00:00:18]} Kh6 {[%clk 00:00:43]} {[%emt 00:00:24]} 49. Rf8 {[%clk 00:00:53]}
{[%emt 00:00:36]} Kh7 {[%clk 00:00:58]} {[%emt 00:00:12]} 50. Rf7+ {[%clk
00:00:41]} {[%emt 00:00:45]} Kh6 {[%clk 00:01:20]} {[%emt 00:00:08]} 51. Rf8
{[%clk 00:01:02]} {[%emt 00:00:09]} Kh7 {[%clk 00:01:35]} {[%emt 00:00:14]} 52.
Rf4 {[%clk 00:00:56]} {[%emt 00:00:37]} Nf3 {[%clk 00:00:35]} {[%emt 00:01:30]}
53. Re2 {[%clk 00:00:47]} {[%emt 00:00:38]} Nd4 {[%clk 00:00:45]} {[%emt
00:00:20]} 54. Rg2 {[%clk 00:01:10]} {[%emt 00:00:08]} Nf3 {[%clk 00:01:14]}
{[%emt 00:00:01]} 55. Rf7+ {[%clk 00:00:39]} {[%emt 00:01:01]} Kh6 {[%clk
00:01:17]} {[%emt 00:00:26]} 56. Rf6+ {[%clk 00:00:43]} {[%emt 00:00:27]} Kh7
{[%clk 00:01:07]} {[%emt 00:00:40]} 57. Rxf3 {[%clk 00:00:41]} {[%emt
00:00:32]} e2 {[%clk 00:01:35]} {[%emt 00:00:01]} 58. Rg1 {[%clk 00:00:41]}
{[%emt 00:00:30]} e1=Q {[%clk 00:02:01]} {[%emt 00:00:04]} 59. Rxe1 {[%clk
00:01:06]} {[%emt 00:00:05]} Rxe1+ {[%clk 00:02:27]} {[%emt 00:00:03]} 60. Kg2
{[%clk 00:01:31]} {[%emt 00:00:05]} Kg6 {[%clk 00:01:29]} {[%emt 00:01:28]} 61.
Kg3 {[%clk 00:01:12]} {[%emt 00:00:49]} Rg1+ {[%clk 00:01:10]} {[%emt
00:00:49]} 62. Kf4 {[%clk 00:01:36]} {[%emt 00:00:07]} Kf6 {[%clk 00:00:50]}
{[%emt 00:00:49]} 63. Rf2 {[%clk 00:01:26]} {[%emt 00:00:40]} Rh1 {[%clk
00:00:52]} {[%emt 00:00:28]} 64. a3 {[%clk 00:00:53]} {[%emt 00:01:04]} a4
{[%clk 00:00:56]} {[%emt 00:00:26]} 65. Rf3 {[%clk 00:00:42]} {[%emt 00:00:41]}
Rb1 {[%clk 00:00:40]} {[%emt 00:00:45]} 66. Rf2 {[%clk 00:00:48]} {[%emt
00:00:25]} Rh1 {[%clk 00:00:54]} {[%emt 00:00:16]} 67. Kg4+ {[%clk 00:00:41]}
{[%emt 00:00:37]} Ke5 {[%clk 00:00:34]} {[%emt 00:00:50]} 68. Rg2 {[%clk
00:00:38]} {[%emt 00:00:33]} c4 {[%clk 00:00:43]} {[%emt 00:00:21]} 69. h4
{[%clk 00:00:41]} {[%emt 00:00:27]} Kd4 {[%clk 00:01:00]} {[%emt 00:00:12]} 70.
h5 {[%clk 00:00:43]} {[%emt 00:00:29]} c3 {[%clk 00:00:46]} {[%emt 00:00:43]}
71. bxc3+ {[%clk 00:01:11]} {[%emt 00:00:03]} Kxc3 {[%clk 00:00:59]} {[%emt
00:00:17]} 72. Rg3+ {[%clk 00:01:08]} {[%emt 00:00:34]} Kb2 {[%clk 00:00:43]}
{[%emt 00:00:44]} 73. Rh3 {[%clk 00:01:10]} {[%emt 00:00:28]} Rg1+ {[%clk
00:01:01]} {[%emt 00:00:13]} 74. Kf4 {[%clk 00:00:59]} {[%emt 00:00:41]} c5
{[%clk 00:01:08]} {[%emt 00:00:22]} 75. Ke4 {[%clk 00:00:39]} {[%emt 00:00:51]}
c4 {[%clk 00:01:27]} {[%emt 00:00:10]} 76. h6 {[%clk 00:00:39]} {[%emt
00:00:31]} Rg8 {[%clk 00:01:16]} {[%emt 00:00:40]} 77. h7 {[%clk 00:00:42]}
{[%emt 00:00:28]} Rh8 {[%clk 00:01:38]} {[%emt 00:00:08]} 78. Rh2+ {[%clk
00:00:35]} {[%emt 00:00:37]} Kxa3 {[%clk 00:01:12]} {[%emt 00:00:55]} 79. Kd4
{[%clk 00:00:44]} {[%emt 00:00:21]} Kb3 {[%clk 00:01:38]} {[%emt 00:00:03]} 80.
Rh3+ {[%clk 00:00:45]} {[%emt 00:00:30]} Kb4 {[%emt 00:00:26]} 81. Rh6 {[%clk
00:00:55]} c3 {[%clk 00:00:34]} {[%emt 00:01:58]} 82. Kd3 {[%clk 00:00:44]}
{[%emt 00:00:41]} a3 {[%clk 00:00:41]} {[%emt 00:00:23]} 83. Rb6+ {[%clk
00:00:41]} {[%emt 00:00:33]} Ka5 {[%clk 00:00:44]} {[%emt 00:00:26]} 84. Rb7
{[%clk 00:00:43]} {[%emt 00:00:28]} a2 {[%clk 00:00:47]} {[%emt 00:00:28]} 85.
Ra7+ {[%clk 00:00:41]} {[%emt 00:00:32]} Kb4 {[%clk 00:01:15]} {[%emt
00:00:01]} 86. Rb7+ {[%clk 00:00:37]} {[%emt 00:00:34]} Kc5 {[%clk 00:00:47]}
{[%emt 00:00:58]} 87. Ra7 {[%clk 00:00:48]} {[%emt 00:00:19]} Rxh7 {[%clk
00:00:53]} {[%emt 00:00:24]} 88. Rxa2 {[%clk 00:00:35]} {[%emt 00:00:44]} Rh3+
{[%clk 00:01:02]} {[%emt 00:00:20]} 89. Ke4 {[%clk 00:00:41]} {[%emt 00:00:24]}
Kc4 {[%clk 00:01:18]} {[%emt 00:00:13]} 90. Ra8 {[%clk 00:00:48]} {[%emt
00:00:23]} c2 {[%clk 00:00:44]} {[%emt 00:01:04]} 91. Rc8+ {[%clk 00:01:13]}
{[%emt 00:00:06]} Kb3 {[%clk 00:01:06]} {[%emt 00:00:08]} 92. Kd4 {[%clk
00:01:20]} {[%emt 00:00:23]} Rh1 {[%clk 00:01:06]} {[%emt 00:00:29]} 93. Rb8+
{[%clk 00:01:01]} {[%emt 00:00:49]} Ka4 {[%clk 00:01:24]} {[%emt 00:00:11]} 94.
Ra8+ {[%clk 00:01:20]} {[%emt 00:00:12]} Kb5 {[%clk 00:01:47]} {[%emt
00:00:06]} 0-1